[Event "SVK Extraliga 2019-20"]
[Site "Slovakia"]
[Date "2019.10.19"]
[Round "1.8"]
[White "Pcola, Jaroslav"]
[Black "Takacs, Laszlo"]
[Result "1/2-1/2"]
[ECO "B52"]
[WhiteElo "2082"]
[BlackElo "2249"]
[Annotator "NA"]
[PlyCount "92"]
[EventDate "2019.10.19"]
[EventType "team-tourn"]
[EventCountry "SVK"]
[SourceTitle "playchess.com"]
[Source "ChessBase"]
[SourceQuality "1"]
[WhiteTeam "Humenne"]
[BlackTeam "Streda"]
[TimeControl "40/5400+30:1800+30"]

1. e4 {[%emt 0:00:00]} c5 {[%emt 0:00:00]} 2. Nf3 {[%emt 0:00:06]} d6 {[%emt 0:00:38]} 3. Bb5+ {[%emt 0:00:55]} Bd7 {[%emt 0:00:20]} 4. Bxd7+ {[%emt 0:00:44]} Qxd7 {[%emt 0:00:14]} 5. O-O {[%emt 0:00:54]} Nc6 {[%emt 0:01:15]} 6. c3 {[%emt 0:03:26]} Nf6 {[%emt 0:04:33]} 7. Re1 {[%emt 0:00:29]} e6 {[%emt 0:02:13]} 8. d4 {[%emt 0:01:15]} cxd4 {[%emt 0:01:48]} 9. cxd4 {[%emt 0:00:12]} d5 {[%emt 0:00:10]} 10. e5 {[%emt 0:01:09]} Ne4 {[%emt 0:00:48]} 11. Nbd2 {[%emt 0:04:40]} Nxd2 {[%emt 0:01:10]} 12. Bxd2 {[%emt 0:00:31]} Be7 {[%emt 0:02:03]} 13. Rc1 {[%emt 0:03:16]} O-O {[%emt 0:00:54]} 14. Rc3 {[%emt 0:01:05]} Rac8 {[%emt 0:08:00] B52: Sicilian: Moscow Variation with 3...Bd7} (14... Rfc8 15. h4 Bd8 16. Rd3 Qc7 17. Ng5 h6 18. Nh3 Ne7 19. Bc3 b5 20. Nf4 Nf5 21. Qg4 Bxh4 22. Nh5 {½-½ (52) Nakamura,H (2769)-Grischuk,A (2766) Paris 2018}) 15. a3 {[%emt 0:02:24]} b5 {[%emt 0:06:29]} 16. Rd3 {[%emt 0:05:27]} f5 {[%emt 0:15:38]} (16... Qd8 $11) 17. exf6 $1 {[%emt 0:04:08]} Bxf6 {[%emt 0:00:29]} 18. Bg5 $146 {[%emt 0:06:18]} ({Predecessor:} 18. Bc3 a5 19. Re2 b4 20. axb4 axb4 21. Be1 Rb8 22. Rde3 {½-½ (51) Zakic,S (2359)-Boskovic,D (2332) Kragujevac 2000}) 18... Rce8 {[%emt 0:13:20]} 19. Bxf6 {[%emt 0:07:05]} Rxf6 {[%emt 0:00:24]} 20. Ne5 {[%emt 0:07:51]} (20. Rc3 $16) 20... Nxe5 {[%emt 0:00:18]} 21. Rxe5 {[%emt 0:00:21]} Ref8 {[%emt 0:03:54]} 22. f3 {[%emt 0:10:42]} Rc8 {[%emt 0:00:21]} 23. Qd2 {[%emt 0:01:32]} Rc4 {[%emt 0:06:29]} 24. b3 {[%emt 0:02:35]} Rc6 $11 {[%emt 0:02:31]} 25. Rc3 {[%emt 0:13:04]} Rf8 {[%emt 0:11:59]} 26. Rxc6 {[%emt 0:01:56]} Qxc6 {[%emt 0:00:12]} 27. Qe3 {[%emt 0:01:49]} Rf6 {[%emt 0:00:44]} 28. Qd2 {[%emt 0:02:11]} Qb6 {[%emt 0:00:23]} 29. h3 {[%emt 0:08:12]} h6 {[%emt 0:03:07]} 30. Kh1 {[%emt 0:01:00]} Qc7 {[%emt 0:06:03]} 31. Re1 {[%emt 0:01:57]} Qg3 {[%emt 0:04:03]} 32. Qe2 {[%emt 0:00:57]} Qf4 {[%emt 0:01:17]} 33. Rd1 {[%emt 0:03:43]} a6 {[%emt 0:01:13]} 34. a4 {[%emt 0:00:16]} Qb8 {[%emt 0:01:49]} 35. axb5 {[%emt 0:02:40]} axb5 {[%emt 0:00:13]} 36. Rc1 {[%emt 0:00:25]} Qf4 {[%emt 0:02:12]} 37. Rc8+ {[%emt 0:00:42]} Kh7 {[%emt 0:00:04]} 38. Qd3+ {[%emt 0:00:50]} Rg6 {[%emt 0:00:02]} 39. Rc2 {[%emt 0:01:48]} Qf6 {[%emt 0:01:13]} 40. Re2 {[%emt 0:00:30]} Kg8 {[%emt 0:00:41]} 41. Re1 {[%emt 0:02:04]} Qg5 {[%emt 0:01:49]} 42. Qe2 {[%emt 0:01:51]} Kh7 {[%emt 0:07:37]} 43. Qc2 {[%emt 0:03:08]} Kg8 {[%emt 0:01:26]} 44. Qc8+ {[%emt 0:01:02]} Kh7 {[%emt 0:00:07]} 45. Qc2 {[%emt 0:00:04]} Kg8 {[%emt 0:10:06]} 46. Qc8+ {[%emt 0:00:16]} Kh7 {[%emt 0:00:10]} 1/2-1/2

[Event "SVK Extraliga 2019-20"]
[Site "Slovakia"]
[Date "2019.10.20"]
[Round "1.8"]
[White "Bochnickova, Simona"]
[Black "Sobek, Michal"]
[Result "0-1"]
[ECO "B34"]
[WhiteElo "1469"]
[BlackElo "2052"]
[Annotator "NA"]
[PlyCount "62"]
[EventDate "2019.10.19"]
[EventType "team-tourn"]
[EventCountry "SVK"]
[SourceTitle "playchess.com"]
[Source "ChessBase"]
[SourceQuality "1"]
[WhiteTeam "Bratislava"]
[BlackTeam "Modra"]
[WhiteTeamCountry "SVK"]
[BlackTeamCountry "SVK"]
[TimeControl "40/5400+30:1800+30"]

1. e4 {[%emt 0:00:00]} c5 {[%emt 0:00:00]} 2. Nf3 {[%emt 0:00:00]} Nc6 {[%emt 0:00:00]} 3. d4 {[%emt 0:00:21]} cxd4 {[%emt 0:00:00]} 4. Nxd4 {[%emt 0:00:09]} g6 {[%emt 0:00:03]} 5. Be3 {[%emt 0:02:38]} Nf6 {[%emt 0:01:24]} 6. Nc3 {[%emt 0:01:03]} Bg7 {[%emt 0:00:09]} 7. f3 {[%emt 0:03:00]} O-O {[%emt 0:00:16]} 8. Qd2 {[%emt 0:00:48]} d5 {[%emt 0:00:26]} 9. e5 {[%emt 0:04:15]} Nxe5 {[%emt 0:01:20]} 10. O-O-O {[%emt 0:00:55]} b6 {[%emt 0:17:51]} 11. Bf4 {[%emt 0:17:57]} Nc4 {[%emt 0:09:45]} 12. Bxc4 {[%emt 0:00:16]} dxc4 {[%emt 0:00:02]} 13. Qe2 {[%emt 0:00:45]} (13. Bh6 $11) 13... Nd5 {[%emt 0:01:38]} 14. Qxc4 {[%emt 0:16:35]} Nxc3 {[%emt 0:14:35]} 15. Qxc3 {[%emt 0:10:03]} Qe8 $15 {[%emt 0:17:00]} 16. Qb4 {[%emt 0:06:30]} a5 {[%emt 0:09:16]} 17. Qxb6 {[%emt 0:09:42]} Qa4 {[%emt 0:02:37]} 18. Qc6 {[%emt 0:03:56]} Qxa2 {[%emt 0:00:24]} 19. Qxa8 {[%emt 0:01:26]} Bxd4 {[%emt 0:00:09]} 20. Rxd4 {[%emt 0:00:52]} Qa1+ {[%emt 0:00:05]} 21. Kd2 {[%emt 0:00:11]} Qxh1 {[%emt 0:00:08]} 22. Qxa5 {[%emt 0:01:36]} Qxg2+ {[%emt 0:00:04]} 23. Ke3 {[%emt 0:00:12]} Qg1+ {[%emt 0:01:31]} 24. Kd3 {[%emt 0:00:44]} Qf1+ {[%emt 0:03:15]} 25. Ke3 {[%emt 0:02:47]} Qg1+ {[%emt 0:00:46]} 26. Kd3 {[%emt 0:00:16]} Bf5+ {[%emt 0:00:27]} 27. Kc3 {[%emt 0:00:45]} Qf2 {[%emt 0:00:46]} 28. Qa4 {[%emt 0:07:37]} Rc8+ {[%emt 0:00:55]} 29. Rc4 {[%emt 0:00:51]} Qxf3+ {[%emt 0:00:13]} 30. Kd2 {[%emt 0:00:52]} Rd8+ {[%emt 0:00:07]} 31. Rd4 {[%emt 0:00:25]} Qxf4+ {[%emt 0:00:06]} 0-1

[Event "SVK Extraliga 2019-20"]
[Site "Slovakia"]
[Date "2019.10.20"]
[Round "2.1"]
[White "Papp, Gabor"]
[Black "Balogh, Csaba"]
[Result "1/2-1/2"]
[ECO "C45"]
[WhiteElo "2587"]
[BlackElo "2587"]
[Annotator "ChessBase"]
[PlyCount "44"]
[EventDate "2019.10.19"]
[EventType "team-tourn"]
[EventCountry "SVK"]
[SourceTitle "playchess.com"]
[Source "ChessBase"]
[SourceQuality "1"]
[WhiteTeam "Hungary"]
[BlackTeam "Hungary"]
[WhiteTeamCountry "HUN"]
[BlackTeamCountry "HUN"]
[TimeControl "40/5400+30:1800+30"]

1. e4 {[%emt 0:00:04]} e5 {[%emt 0:00:00]} 2. Nf3 {[%emt 0:00:14]} Nc6 {[%emt 0:00:00]} 3. d4 {[%emt 0:00:12]} exd4 {[%emt 0:00:21]} 4. Nxd4 {[%emt 0:00:07]} Nf6 {[%emt 0:01:16]} 5. Nxc6 {[%emt 0:00:29]} bxc6 {[%emt 0:00:11]} 6. e5 {[%emt 0:01:06]} Qe7 {[%emt 0:01:05]} 7. Qe2 {[%emt 0:00:10]} Nd5 {[%emt 0:00:06]} 8. c4 {[%emt 0:00:57]} Ba6 {[%emt 0:03:54]} 9. b3 {[%emt 0:11:34]} g6 {[%emt 0:01:42]} 10. Ba3 {[%emt 0:03:07]} Nb4 {[%emt 0:06:14]} 11. Bb2 {[%emt 0:02:31]} Bg7 {[%emt 0:02:10]} 12. a3 {[%emt 0:00:17]} Nd5 {[%emt 0:01:11]} 13. Nd2 {[%emt 0:00:30]} O-O {[%emt 0:08:01]} 14. O-O-O {[%emt 0:00:54]} Rfe8 {[%emt 0:05:18]} 15. Qf3 {[%emt 0:02:42]} Nb6 {[%emt 0:02:45]} 16. Ne4 {[%emt 0:00:09]} Bxe5 {[%emt 0:01:43]} 17. Bxe5 {[%emt 0:00:15]} Qxe5 {[%emt 0:00:07]} 18. Nf6+ {[%emt 0:00:25]} Kf8 {[%emt 0:01:53]} 19. Nxe8 {[%emt 0:08:02]} Qa1+ {[%emt 0:04:02]} 20. Kc2 {[%emt 0:01:58]} Qa2+ {[%emt 0:00:08]} 21. Kc1 {[%emt 0:01:27]} Qa1+ {[%emt 0:03:45]} 22. Kc2 {[%emt 0:00:06]} Qa2+ {[%emt 0:00:03]} 1/2-1/2

[Event "SVK Extraliga 2019-20"]
[Site "Slovakia"]
[Date "2019.10.20"]
[Round "2.1"]
[White "Krejci, Jan"]
[Black "Antoniewski, Rafal"]
[Result "1/2-1/2"]
[ECO "A38"]
[WhiteElo "2574"]
[BlackElo "2481"]
[Annotator "ChessBase"]
[PlyCount "45"]
[EventDate "2019.10.19"]
[EventType "team-tourn"]
[EventCountry "SVK"]
[SourceTitle "playchess.com"]
[Source "ChessBase"]
[SourceQuality "1"]
[WhiteTeam "Prakovce"]
[BlackTeam "Dunajov"]
[TimeControl "40/5400+30:1800+30"]

1. c4 {[%emt 0:00:00]} g6 {[%emt 0:00:13]} 2. Nc3 {[%emt 0:00:11]} Bg7 {[%emt 0:00:07]} 3. g3 {[%emt 0:01:03]} c5 {[%emt 0:04:17]} 4. Bg2 {[%emt 0:00:22]} Nc6 {[%emt 0:00:06]} 5. Nf3 {[%emt 0:00:07]} Nf6 {[%emt 0:02:41]} 6. d4 {[%emt 0:00:48]} cxd4 {[%emt 0:01:44]} 7. Nxd4 {[%emt 0:00:05]} O-O {[%emt 0:01:37]} 8. O-O {[%emt 0:00:05]} Qa5 {[%emt 0:01:24]} 9. h3 {[%emt 0:12:40]} d6 {[%emt 0:18:48]} 10. e3 {[%emt 0:08:18]} Bd7 {[%emt 0:01:20]} 11. Nb3 {[%emt 0:03:17]} Qb4 {[%emt 0:10:18]} 12. Nd2 {[%emt 0:05:09]} Rac8 {[%emt 0:01:34]} 13. a3 {[%emt 0:00:41]} Qb6 {[%emt 0:04:50]} 14. b3 {[%emt 0:01:03]} Ne5 {[%emt 0:02:59]} 15. Qe2 {[%emt 0:02:19]} Bc6 {[%emt 0:01:50]} 16. Bb2 {[%emt 0:03:10]} Bxg2 {[%emt 0:03:49]} 17. Kxg2 {[%emt 0:00:02]} a6 {[%emt 0:05:46]} 18. Rac1 {[%emt 0:04:41]} Rfe8 {[%emt 0:00:39]} 19. e4 {[%emt 0:02:57]} Ned7 {[%emt 0:05:15]} 20. Rfe1 {[%emt 0:01:46]} h5 {[%emt 0:00:47]} 21. f4 {[%emt 0:04:41]} e5 {[%emt 0:07:41]} 22. f5 {[%emt 0:04:20]} Bh6 {[%emt 0:00:27]} 23. fxg6 {[%emt 0:03:21]} 1/2-1/2

[Event "SVK Extraliga 2019-20"]
[Site "Slovakia"]
[Date "2019.10.20"]
[Round "2.1"]
[White "Babula, Vlastimil"]
[Black "Balog, Imre"]
[Result "1-0"]
[ECO "A58"]
[WhiteElo "2559"]
[BlackElo "2566"]
[Annotator "ChessBase"]
[PlyCount "57"]
[EventDate "2019.10.19"]
[EventType "team-tourn"]
[EventCountry "SVK"]
[SourceTitle "playchess.com"]
[Source "ChessBase"]
[SourceQuality "1"]
[WhiteTeam "Snina"]
[BlackTeam "Podhajska"]
[TimeControl "40/5400+30:1800+30"]

1. d4 {[%emt 0:00:00]} Nf6 {[%emt 0:00:00]} 2. c4 {[%emt 0:00:00]} c5 {[%emt 0:00:05]} 3. d5 {[%emt 0:00:07]} b5 {[%emt 0:00:07]} 4. cxb5 {[%emt 0:00:12]} a6 {[%emt 0:00:06]} 5. bxa6 {[%emt 0:00:38]} g6 {[%emt 0:00:24]} 6. Nc3 {[%emt 0:00:55]} Bg7 {[%emt 0:00:21]} 7. a7 {[%emt 0:06:02]} Rxa7 {[%emt 0:00:55]} 8. e4 {[%emt 0:00:31]} O-O {[%emt 0:02:14]} 9. Nf3 {[%emt 0:01:09]} e6 {[%emt 0:16:22]} 10. dxe6 {[%emt 0:10:10]} dxe6 {[%emt 0:00:10]} 11. Qxd8 Rxd8 {[%emt 0:00:05]} 12. Bb5 {[%emt 0:36:04]} Bb7 {[%emt 0:02:29]} 13. Nd2 {[%emt 0:03:53]} Na6 {[%emt 0:01:12]} 14. f3 {[%emt 0:04:04]} Nb4 {[%emt 0:03:00]} 15. O-O {[%emt 0:00:50]} Ne8 {[%emt 0:04:31]} 16. Nb3 {[%emt 0:02:54]} Nc2 {[%emt 0:04:13]} 17. Rb1 {[%emt 0:01:05]} Nd6 {[%emt 0:00:27]} 18. Rd1 {[%emt 0:02:35]} Nd4 {[%emt 0:08:07]} 19. Be3 {[%emt 0:01:49]} Rc8 {[%emt 0:10:23]} 20. Bd7 {[%emt 0:06:03]} Rc7 {[%emt 0:05:04]} 21. Nxd4 {[%emt 0:01:32]} cxd4 {[%emt 0:00:51]} 22. Bxd4 {[%emt 0:00:26]} Bxd4+ {[%emt 0:00:34]} 23. Rxd4 {[%emt 0:00:03]} Rxd7 {[%emt 0:00:34]} 24. Rbd1 {[%emt 0:01:00]} Ra6 {[%emt 0:00:29]} 25. e5 {[%emt 0:00:48]} Bd5 {[%emt 0:00:27]} 26. exd6 {[%emt 0:01:37]} Rdxd6 {[%emt 0:00:26]} 27. b4 {[%emt 0:03:22]} Rdb6 {[%emt 0:00:30]} 28. a4 {[%emt 0:01:09]} Bb3 {[%emt 0:00:56]} 29. b5 {[%emt 0:01:05]} 1-0

[Event "SVK Extraliga 2019-20"]
[Site "Slovakia"]
[Date "2019.10.20"]
[Round "2.1"]
[White "Vetoshko, Volodymyr"]
[Black "Petenyi, Tamas"]
[Result "1-0"]
[ECO "A40"]
[WhiteElo "2506"]
[BlackElo "2427"]
[Annotator "ChessBase"]
[PlyCount "77"]
[EventDate "2019.10.19"]
[EventType "team-tourn"]
[EventCountry "SVK"]
[SourceTitle "playchess.com"]
[Source "ChessBase"]
[SourceQuality "1"]
[BlackTeam "Streda"]
[TimeControl "40/5400+30:1800+30"]

1. d4 {[%emt 0:00:00]} g6 {[%emt 0:00:35]} 2. c4 {[%emt 0:00:07]} Bg7 {[%emt 0:00:06]} 3. Nc3 {[%emt 0:00:36]} c6 {[%emt 0:01:59]} 4. e4 {[%emt 0:01:53]} d6 {[%emt 0:01:19]} 5. Be3 {[%emt 0:03:23]} Nf6 {[%emt 0:01:59]} 6. Be2 {[%emt 0:00:12]} Na6 {[%emt 0:01:28]} 7. h3 {[%emt 0:05:33]} O-O {[%emt 0:04:20]} 8. Nf3 {[%emt 0:00:54]} Nc7 {[%emt 0:00:50]} 9. O-O {[%emt 0:01:22]} b6 {[%emt 0:05:21]} 10. Qd2 {[%emt 0:07:12]} Ba6 {[%emt 0:04:59]} 11. a4 {[%emt 0:17:20]} Re8 {[%emt 0:07:40]} 12. Rfd1 {[%emt 0:04:24]} Qb8 {[%emt 0:07:08]} 13. e5 {[%emt 0:04:03]} Nd7 {[%emt 0:00:54]} 14. exd6 {[%emt 0:04:13]} exd6 {[%emt 0:00:06]} 15. Bf4 {[%emt 0:00:08]} Ne6 {[%emt 0:07:48]} 16. Bh2 {[%emt 0:00:27]} c5 {[%emt 0:08:37]} 17. dxc5 {[%emt 0:12:14]} bxc5 {[%emt 0:02:30]} 18. Bxd6 {[%emt 0:04:50]} Qb7 {[%emt 0:02:53]} 19. Nb5 {[%emt 0:01:30]} Nf6 {[%emt 0:02:33]} 20. Qc2 {[%emt 0:06:03]} Ne4 {[%emt 0:05:01]} 21. Bd3 {[%emt 0:03:35]} f5 {[%emt 0:03:11]} 22. Bh2 {[%emt 0:02:59]} Qe7 {[%emt 0:04:56]} 23. Bxe4 {[%emt 0:02:07]} fxe4 {[%emt 0:00:06]} 24. Qxe4 {[%emt 0:00:28]} Bb7 {[%emt 0:01:35]} 25. Qg4 {[%emt 0:00:16]} Bxb2 {[%emt 0:04:17]} 26. Rab1 {[%emt 0:00:49]} Bg7 {[%emt 0:03:10]} 27. Nd6 {[%emt 0:06:21]} Bxf3 {[%emt 0:03:13]} 28. gxf3 {[%emt 0:00:10]} Nd4 {[%emt 0:05:12]} 29. Nxe8 {[%emt 0:00:11]} Rxe8 {[%emt 0:01:23]} 30. Kg2 {[%emt 0:04:04]} Qf7 {[%emt 0:02:20]} 31. Re1 {[%emt 0:01:37]} Rxe1 {[%emt 0:01:06]} 32. Rxe1 {[%emt 0:00:06]} h5 {[%emt 0:00:18]} 33. Qe4 {[%emt 0:01:06]} Kh7 {[%emt 0:00:21]} 34. Qd5 {[%emt 0:00:36]} Qf6 {[%emt 0:01:09]} 35. Re8 {[%emt 0:01:16]} h4 {[%emt 0:01:18]} 36. Qe4 {[%emt 0:02:09]} Nf5 {[%emt 0:00:33]} 37. Be5 {[%emt 0:01:12]} Qg5+ {[%emt 0:02:47]} 38. Qg4 {[%emt 0:00:08]} Qh6 {[%emt 0:00:20]} 39. Bf4 {[%emt 0:00:41]} 1-0

[Event "SVK Extraliga 2019-20"]
[Site "Slovakia"]
[Date "2019.10.20"]
[Round "2.1"]
[White "Mazur, Stefan"]
[Black "Pechac, Jergus"]
[Result "1-0"]
[ECO "B90"]
[WhiteElo "2435"]
[BlackElo "2491"]
[Annotator "ChessBase"]
[PlyCount "111"]
[EventDate "2019.10.19"]
[EventType "team-tourn"]
[EventCountry "SVK"]
[SourceTitle "playchess.com"]
[Source "ChessBase"]
[SourceQuality "1"]
[WhiteTeam "Liptovska"]
[BlackTeam "Zilina"]
[TimeControl "40/5400+30:1800+30"]

1. e4 {[%emt 0:00:00]} c5 {[%emt 0:00:00]} 2. Nf3 {[%emt 0:00:00]} d6 {[%emt 0:00:00]} 3. d4 {[%emt 0:00:00]} cxd4 {[%emt 0:00:19]} 4. Nxd4 {[%emt 0:00:00]} Nf6 {[%emt 0:00:30]} 5. Nc3 {[%emt 0:00:21]} a6 {[%emt 0:00:30]} 6. h3 {[%emt 0:00:30]} e6 {[%emt 0:00:30]} 7. g4 {[%emt 0:00:30]} Nfd7 {[%emt 0:00:30]} 8. Be3 {[%emt 0:00:30]} Be7 {[%emt 0:00:30]} 9. g5 {[%emt 0:00:30]} b5 {[%emt 0:00:30]} 10. a3 {[%emt 0:00:30]} Qc7 {[%emt 0:00:30]} 11. h4 {[%emt 0:00:30]} Nc6 {[%emt 0:00:30]} 12. Nxc6 {[%emt 0:00:30]} Qxc6 {[%emt 0:00:30]} 13. Qd4 {[%emt 0:00:30]} O-O {[%emt 0:00:30]} 14. O-O-O {[%emt 0:00:30]} Ne5 {[%emt 0:00:30]} 15. f4 {[%emt 0:00:30]} Ng4 {[%emt 0:00:30]} 16. Bg1 {[%emt 0:00:30]} h5 {[%emt 0:00:30]} 17. gxh6 {[%emt 0:00:30]} Nxh6 {[%emt 0:00:30]} 18. Rh2 {[%emt 0:00:30]} Re8 {[%emt 0:00:30]} 19. Rg2 {[%emt 0:00:30]} Bf8 {[%emt 0:00:30]} 20. Be3 {[%emt 0:00:30]} Ng4 {[%emt 0:00:30]} 21. Bd2 {[%emt 0:00:30]} f5 {[%emt 0:00:30]} 22. Bd3 {[%emt 0:00:30]} Qc5 {[%emt 0:00:30]} 23. Qxc5 {[%emt 0:00:30]} dxc5 {[%emt 0:00:30]} 24. Be2 {[%emt 0:00:30]} Bb7 {[%emt 0:00:30]} 25. Bxg4 {[%emt 0:00:30]} fxg4 {[%emt 0:00:30]} 26. Re1 {[%emt 0:00:30]} b4 {[%emt 0:00:30]} 27. Na4 {[%emt 1:17:47]} Rad8 {[%emt 1:06:39]} 28. Rxg4 {[%emt 0:05:27]} a5 {[%emt 0:13:38]} 29. Rg5 {[%emt 0:01:28]} e5 {[%emt 0:03:43]} 30. axb4 {[%emt 0:02:33]} cxb4 {[%emt 0:07:05]} 31. Rxe5 {[%emt 0:00:08]} Rxe5 {[%emt 0:00:13]} 32. fxe5 {[%emt 0:00:02]} Bc6 {[%emt 0:01:03]} 33. b3 {[%emt 0:02:24]} Be7 {[%emt 0:00:58]} 34. h5 {[%emt 0:01:48]} Bxa4 {[%emt 0:01:18]} 35. bxa4 {[%emt 0:00:05]} Rd4 {[%emt 0:00:31]} 36. Rg1 {[%emt 0:03:00]} Kf7 {[%emt 0:00:27]} 37. Rg4 {[%emt 0:00:58]} Rd8 {[%emt 0:00:07]} 38. Bg5 {[%emt 0:01:23]} Bxg5+ {[%emt 0:00:11]} 39. Rxg5 {[%emt 0:00:02]} Rd4 {[%emt 0:00:19]} 40. e6+ {[%emt 0:01:02]} Kxe6 {[%emt 0:00:15]} 41. Rxg7 {[%emt 0:03:54]} Rxe4 {[%emt 0:05:09]} 42. Rg5 {[%emt 0:08:19]} Rh4 {[%emt 0:01:46]} 43. Rxa5 {[%emt 0:00:12]} Kd7 {[%emt 0:00:06]} 44. Kb2 {[%emt 0:02:21]} Rh3 {[%emt 0:00:28]} 45. Rc5 {[%emt 0:04:38]} Kd6 {[%emt 0:00:14]} 46. Rc4 {[%emt 0:00:54]} Rxh5 {[%emt 0:01:23]} 47. Kb3 {[%emt 0:00:09]} Rh1 {[%emt 0:00:03]} 48. Kxb4 {[%emt 0:01:22]} Rb1+ {[%emt 0:00:22]} 49. Ka5 {[%emt 0:00:59]} Rb2 {[%emt 0:00:16]} 50. Ka6 {[%emt 0:00:14]} Kd7 {[%emt 0:00:44]} 51. a5 {[%emt 0:00:10]} Kd6 {[%emt 0:00:06]} 52. Ka7 {[%emt 0:00:24]} Kd7 {[%emt 0:00:21]} 53. a6 {[%emt 0:00:12]} Rb5 {[%emt 0:00:51]} 54. Ka8 {[%emt 0:00:17]} Rb6 {[%emt 0:07:22]} 55. a7 {[%emt 0:00:18]} Rb2 {[%emt 0:02:44]} 56. Rc3 {[%emt 0:00:08]} 1-0

[Event "SVK Extraliga 2019-20"]
[Site "Slovakia"]
[Date "2019.10.20"]
[Round "2.1"]
[White "Sahidi, Samir"]
[Black "Cernousek, Lukas"]
[Result "0-1"]
[ECO "D73"]
[WhiteElo "2374"]
[BlackElo "2458"]
[Annotator "ChessBase"]
[PlyCount "104"]
[EventDate "2019.10.19"]
[EventType "team-tourn"]
[EventCountry "SVK"]
[SourceTitle "playchess.com"]
[Source "ChessBase"]
[SourceQuality "1"]
[BlackTeam "Dubnica"]
[TimeControl "40/5400+30:1800+30"]

1. d4 {[%emt 0:00:00]} Nf6 {[%emt 0:00:00]} 2. c4 {[%emt 0:00:01]} g6 {[%emt 0:00:00]} 3. g3 {[%emt 0:01:37]} Bg7 {[%emt 0:00:00]} 4. Bg2 {[%emt 0:00:16]} d5 {[%emt 0:00:04]} 5. Nf3 {[%emt 0:01:18]} dxc4 {[%emt 0:00:34]} 6. Na3 {[%emt 0:04:40]} c3 {[%emt 0:01:48]} 7. bxc3 {[%emt 0:02:20]} O-O {[%emt 0:00:03]} 8. O-O {[%emt 0:01:20]} c5 {[%emt 0:00:04]} 9. Ne5 {[%emt 0:05:38]} Nd5 {[%emt 0:06:59]} 10. Bb2 {[%emt 0:01:35]} Nc6 {[%emt 0:29:08]} 11. Nac4 {[%emt 0:13:10]} Nxe5 {[%emt 0:06:21]} 12. Nxe5 {[%emt 0:00:29]} Bxe5 {[%emt 0:00:13]} 13. dxe5 {[%emt 0:00:33]} Be6 {[%emt 0:00:31]} 14. Rc1 {[%emt 0:06:12]} Rb8 {[%emt 0:04:12]} 15. Ba3 {[%emt 0:04:49]} Qa5 {[%emt 0:08:17]} 16. Bxd5 {[%emt 0:03:53]} Rbd8 {[%emt 0:13:09]} 17. e4 {[%emt 0:01:44]} Qxa3 {[%emt 0:00:47]} 18. Qf3 {[%emt 0:01:15]} Bxd5 {[%emt 0:05:20]} 19. exd5 {[%emt 0:00:14]} Qxa2 {[%emt 0:00:05]} 20. c4 {[%emt 0:02:51]} Qa6 {[%emt 0:10:38]} 21. Rfd1 {[%emt 0:06:00]} b6 {[%emt 0:02:21]} 22. h4 {[%emt 0:00:43]} Qc8 {[%emt 0:00:33]} 23. Kg2 {[%emt 0:00:35]} h5 {[%emt 0:05:07]} 24. Ra1 {[%emt 0:01:58]} Qc7 {[%emt 0:00:55]} 25. Qe4 {[%emt 0:00:40]} Kg7 {[%emt 0:01:53]} 26. Rd3 {[%emt 0:03:35]} Rd7 {[%emt 0:01:13]} 27. Rf3 {[%emt 0:02:22]} f5 {[%emt 0:02:33]} 28. Qf4 {[%emt 0:01:44]} e6 {[%emt 0:00:15]} 29. d6 {[%emt 0:01:12]} Qd8 {[%emt 0:00:48]} 30. Rfa3 {[%emt 0:01:15]} Rff7 {[%emt 0:00:05]} 31. Ra6 {[%emt 0:02:50]} Kh7 {[%emt 0:00:06]} 32. R1a3 {[%emt 0:05:18]} Qa8+ {[%emt 0:00:22]} 33. Qf3 {[%emt 0:04:51]} Qxf3+ {[%emt 0:01:31]} 34. Kxf3 {[%emt 0:00:24]} Kh6 {[%emt 0:00:21]} 35. Kf4 {[%emt 0:01:40]} Rb7 {[%emt 0:00:10]} 36. Ra1 {[%emt 0:02:31]} Rh7 {[%emt 0:00:39]} 37. R6a2 {[%emt 0:06:43]} Rhg7 {[%emt 0:00:48]} 38. f3 {[%emt 0:02:38]} Rgf7 {[%emt 0:00:22]} 39. Ke3 {[%emt 0:00:25]} Kg7 {[%emt 0:00:36]} 40. Kd3 {[%emt 0:00:58]} Kf8 {[%emt 0:00:33]} 41. Kc3 {[%emt 0:31:34]} Ke8 {[%emt 0:06:57]} 42. Kb3 {[%emt 0:00:00]} Kd8 {[%emt 0:00:03]} 43. Ka4 {[%emt 0:00:00]} Kc8 {[%emt 0:01:46]} 44. Kb5 {[%emt 0:00:00]} Kb8 {[%emt 0:00:32]} 45. Rg1 {[%emt 0:00:00]} Rf8 {[%emt 0:02:25]} 46. Rh2 {[%emt 0:00:00]} a6+ {[%emt 0:05:07]} 47. Kxa6 {[%emt 0:00:00]} Ka8 {[%emt 0:09:44]} 48. Kb5 {[%emt 0:00:00]} Ra7 {[%emt 0:00:14]} 49. Kxb6 {[%emt 0:00:00]} Rc8 {[%emt 0:00:13]} 50. d7 {[%emt 0:08:44]} Rb7+ {[%emt 0:00:13]} 51. Ka5 {[%emt 0:00:13]} Rcb8 {[%emt 0:00:11]} 52. d8=Q {[%emt 0:00:09]} Ra7# 0-1

[Event "SVK Extraliga 2019-20"]
[Site "Slovakia"]
[Date "2019.10.20"]
[Round "2.2"]
[White "Plat, Vojtech"]
[Black "Macko, Miroslav"]
[Result "1-0"]
[ECO "A01"]
[WhiteElo "2573"]
[BlackElo "2303"]
[Annotator "ChessBase"]
[PlyCount "55"]
[EventDate "2019.10.19"]
[EventType "team-tourn"]
[EventCountry "SVK"]
[SourceTitle "playchess.com"]
[Source "ChessBase"]
[SourceQuality "1"]
[WhiteTeam "Modra"]
[TimeControl "40/5400+30:1800+30"]

1. b3 {[%emt 0:00:00]} e5 {[%emt 0:01:14]} 2. Bb2 {[%emt 0:00:00]} Nc6 {[%emt 0:00:05]} 3. e3 {[%emt 0:00:00]} d5 {[%emt 0:03:44]} 4. Bb5 {[%emt 0:00:34]} Bd6 {[%emt 0:04:46]} 5. f4 {[%emt 0:00:24]} f6 {[%emt 0:01:16]} 6. fxe5 {[%emt 0:08:44]} fxe5 {[%emt 0:00:47]} 7. Nf3 {[%emt 0:04:13]} Bg4 {[%emt 0:06:56]} 8. h3 {[%emt 0:00:16]} Bxf3 {[%emt 0:07:29]} 9. Qxf3 {[%emt 0:01:00]} Qh4+ {[%emt 0:04:05]} 10. g3 {[%emt 0:10:13]} Qg5 {[%emt 0:01:04]} 11. Nc3 {[%emt 0:00:05]} e4 {[%emt 0:05:46]} 12. Qg4 {[%emt 0:03:03]} Qxg4 {[%emt 0:13:52]} 13. hxg4 {[%emt 0:00:19]} Nge7 {[%emt 0:01:13]} 14. Bxc6+ {[%emt 0:04:36]} bxc6 {[%emt 0:00:13]} 15. Ne2 {[%emt 0:00:04]} O-O {[%emt 0:02:24]} 16. Nf4 {[%emt 0:00:05]} Ng6 {[%emt 0:06:49]} 17. Ke2 {[%emt 0:00:43]} Ne5 {[%emt 0:03:01]} 18. Rh5 {[%emt 0:02:05]} Nxg4 {[%emt 0:09:18]} 19. Rg5 {[%emt 0:00:56]} Nf6 {[%emt 0:00:20]} 20. Ne6 {[%emt 0:01:11]} Rf7 {[%emt 0:00:43]} 21. Rf1 {[%emt 0:03:13]} Re8 {[%emt 0:03:19]} 22. Rxf6 {[%emt 0:00:48]} Rxf6 {[%emt 0:00:16]} 23. Rxg7+ {[%emt 0:00:08]} Kh8 {[%emt 0:00:10]} 24. Bxf6 {[%emt 0:00:04]} Rxe6 {[%emt 0:00:25]} 25. Rg6+ {[%emt 0:00:05]} Rxf6 {[%emt 0:00:19]} 26. Rxf6 {[%emt 0:00:01]} Kg7 {[%emt 0:00:11]} 27. Rf5 {[%emt 0:00:04]} Kg6 {[%emt 0:01:11]} 28. g4 {[%emt 0:00:01]} 1-0